{"text_format":"2","workbook":"xlsx","n_sheets":10,"sheets":["Főösszesítő","Munkanem összesítő","19.Költségtérítések","21.Irtás, föld- és sziklamunka","31.Helyszíni beton és vasbeton","36.Vakolás és rabicolás","42.Hideg- és melegburkolatok k","44.Fa- és műanyag szerkezet el","47.Felületképzés","90.Ideiglenes felületvédelem é"],"not_rendered":{"charts":0,"images":0,"macros":0,"external_links":0,"defined_names":0,"comments":0,"pivot_tables":0},"unopened":[],"bounds":{"document_bytes":16777216,"sheet_cells":100000,"run_cost":"one","rows_first":2000,"rows_last":500,"rows_between":2000,"halvings":0,"cell_chars":16384,"cell_head_chars":4096},"cells_cut":0,"cells_raw":0,"read":"whole","date_system":"1900"}

{"sheet":"Főösszesítő","index":0,"n_rows":8,"n_cols":4,"rows_kept":8,"cut":false,"hidden":false,"merged":[[0,0,0,3],[2,0,2,3],[5,2,5,3],[6,2,6,3],[7,2,7,3]]}
[]
[]
["Költségvetés főösszesítő"]
["Megnevezés",null,"Anyagköltség","Díjköltség"]
["1 Építmény közvetlen költségei",null,{"$f":"'Munkanem összesítő'!C10","v":0},{"$f":"'Munkanem összesítő'!D10","v":0}]
["2.1 ÁFA vetítési alap",null,{"$f":"ROUND(C5+D5,0)","v":0}]
["2.2 ÁFA",0.27,{"$f":"ROUND(C6*B7,0)","v":0}]
["3 A munka ára (HUF)",null,{"$f":"ROUND(C7+C6,0)","v":0}]

{"sheet":"Munkanem összesítő","index":1,"n_rows":10,"n_cols":4,"rows_kept":10,"cut":false,"hidden":false,"merged":[]}
["Ssz.","Megnevezés","Anyagköltség","Díjköltség"]
["19","Költségtérítések",{"$f":"'19.Költségtérítések'!H3","v":0},{"$f":"'19.Költségtérítések'!I3","v":0}]
["21","Irtás, föld- és sziklamunka",{"$f":"'21.Irtás, föld- és sziklamunka'!H4","v":0},{"$f":"'21.Irtás, föld- és sziklamunka'!I4","v":0}]
["31","Helyszíni beton és vasbeton munkák",{"$f":"'31.Helyszíni beton és vasbeton'!H4","v":0},{"$f":"'31.Helyszíni beton és vasbeton'!I4","v":0}]
["36","Vakolás és rabicolás",{"$f":"'36.Vakolás és rabicolás'!H6","v":0},{"$f":"'36.Vakolás és rabicolás'!I6","v":0}]
["42","Hideg- és melegburkolatok készítése, aljzat előkészítés",{"$f":"'42.Hideg- és melegburkolatok k'!H14","v":0},{"$f":"'42.Hideg- és melegburkolatok k'!I14","v":0}]
["44","Fa- és műanyag szerkezet elhelyezése",{"$f":"'44.Fa- és műanyag szerkezet el'!H5","v":0},{"$f":"'44.Fa- és műanyag szerkezet el'!I5","v":0}]
["47","Felületképzés",{"$f":"'47.Felületképzés'!H4","v":0},{"$f":"'47.Felületképzés'!I4","v":0}]
["90","Ideiglenes felületvédelem és takarítási munkák",{"$f":"'90.Ideiglenes felületvédelem é'!H4","v":0},{"$f":"'90.Ideiglenes felületvédelem é'!I4","v":0}]
[null,"Összesen (HUF)",{"$f":"ROUND(SUM(C2:C9),0)","v":0},{"$f":"ROUND(SUM(D2:D9),0)","v":0}]

{"sheet":"19.Költségtérítések","index":2,"n_rows":3,"n_cols":9,"rows_kept":3,"cut":false,"hidden":false,"merged":[]}
["Ssz.","Tételszám","Tétel szövege","Menny.","Egység","Anyag egységár","Díj egységre","Anyag összesen","Díj összesen"]
[1,"19-090-1","Építmények átadás előtti utolsó takarítása (pipere)",1,"db",0,0,{"$f":"ROUND(F2*D2,0)","v":0},{"$f":"ROUND(G2*D2,0)","v":0}]
[null,null,"Munkanem összesen (HUF)",{"$nulls":4},{"$f":"ROUND(SUM(H2:H2),0)","v":0},{"$f":"ROUND(SUM(I2:I2),0)","v":0}]

{"sheet":"21.Irtás, föld- és sziklamunka","index":3,"n_rows":4,"n_cols":9,"rows_kept":4,"cut":false,"hidden":false,"merged":[]}
["Ssz.","Tételszám","Tétel szövege","Menny.","Egység","Anyag egységár","Díj egységre","Anyag összesen","Díj összesen"]
[1,"21-011-12","Munkahelyi depóniából építési törmelék konténerbe rakása,  kézi erővel, önálló munka esetén elszámolva, konténer szállítás nélkül",3,"m³",0,0,{"$f":"ROUND(F2*D2,0)","v":0},{"$f":"ROUND(G2*D2,0)","v":0}]
[2,"21-011-11.1","Építési törmelék konténeres elszállítása, lerakása, lerakóhelyi díjjal, 3,0 m³-es konténerbe",1,"db",0,0,{"$f":"ROUND(F3*D3,0)","v":0},{"$f":"ROUND(G3*D3,0)","v":0}]
[null,null,"Munkanem összesen (HUF)",{"$nulls":4},{"$f":"ROUND(SUM(H2:H3),0)","v":0},{"$f":"ROUND(SUM(I2:I3),0)","v":0}]

{"sheet":"31.Helyszíni beton és vasbeton","index":4,"n_rows":4,"n_cols":9,"rows_kept":4,"cut":false,"hidden":false,"merged":[]}
["Ssz.","Tételszám","Tétel szövege","Menny.","Egység","Anyag egységár","Díj egységre","Anyag összesen","Díj összesen"]
[1,"31-000-13.2","Beton aljzatok, járdák bontása 10 cm vastagságig, kavicsbetonból, salakbetonból",6.04,"m²",0,0,{"$f":"ROUND(F2*D2,0)","v":0},{"$f":"ROUND(G2*D2,0)","v":0}]
[2,"31-030-11.3.1.1.1-0121110","Beton aljzat készítése helyszínen kevert betonból, kézi továbbítással és bedolgozással, merev aljzatra, kavicsbetonból, C 8/10 - C 16/20 kissé képlékeny konzisztenciájú betonból, a felület fasimítóval eldolgozva, 6 cm vastagságig, C16/20 - X0b(H) - 16 - F2 - CEM 42,5, m = 6,4 finomsági modulussal",0.6,"m³",0,0,{"$f":"ROUND(F3*D3,0)","v":0},{"$f":"ROUND(G3*D3,0)","v":0}]
[null,null,"Munkanem összesen (HUF)",{"$nulls":4},{"$f":"ROUND(SUM(H2:H3),0)","v":0},{"$f":"ROUND(SUM(I2:I3),0)","v":0}]

{"sheet":"36.Vakolás és rabicolás","index":5,"n_rows":6,"n_cols":9,"rows_kept":6,"cut":false,"hidden":false,"merged":[]}
["Ssz.","Tételszám","Tétel szövege","Menny.","Egység","Anyag egységár","Díj egységre","Anyag összesen","Díj összesen"]
[1,"36-000-1.1.1","Vakolat leverése oldalfalról vagy mennyezetről 1,5 cm vastagságig falazó, cementes mészhabarcs",28,"m²",0,0,{"$f":"ROUND(F2*D2,0)","v":0},{"$f":"ROUND(G2*D2,0)","v":0}]
[2,"36-002-11.1-0415911","Tapadóhíd képzése gyári zsákos gúzanyaggal, kézi erővel, Baumit Előfröcskölő 2 mm, Cikkszám: 151601",28,"m²",0,0,{"$f":"ROUND(F3*D3,0)","v":0},{"$f":"ROUND(G3*D3,0)","v":0}]
[3,"36-003-1.1.1.1.1-0415511","Oldalfalvakolat készítése, kézi felhordással, zsákos kiszerelésű szárazhabarcsból, sima, normál mész-cement vakolat, 1 cm vastagságban, Baumit Manu 1, mész-cement alapvakolat, Cikkszám: 152218",28,"m²",0,0,{"$f":"ROUND(F4*D4,0)","v":0},{"$f":"ROUND(G4*D4,0)","v":0}]
[4,"K","nyíláskeret javítása, sarokösszedolgozással, 30 cm kiterített szélességig ablakok és erkélyajtó körül",17,"m",0,0,{"$f":"ROUND(F5*D5,0)","v":0},{"$f":"ROUND(G5*D5,0)","v":0}]
[null,null,"Munkanem összesen (HUF)",{"$nulls":4},{"$f":"ROUND(SUM(H2:H5),0)","v":0},{"$f":"ROUND(SUM(I2:I5),0)","v":0}]

{"sheet":"42.Hideg- és melegburkolatok k","index":6,"n_rows":14,"n_cols":9,"rows_kept":14,"cut":false,"hidden":false,"merged":[]}
["Ssz.","Tételszám","Tétel szövege","Menny.","Egység","Anyag egységár","Díj egységre","Anyag összesen","Díj összesen"]
[1,"42-000-2.1","Lapburkolatok bontása, padlóburkolat bármely méretű kőagyag, mozaik vagy tört mozaik (NOVA) lapból",6.04,"m²",0,0,{"$f":"ROUND(F2*D2,0)","v":0},{"$f":"ROUND(G2*D2,0)","v":0}]
[2,"42-000-2.3","Lapburkolatok bontása, lábazatburkolat 0,50 m magasságig,  egyenes egysoros vagy lépcsős kivitelben, 10x10 - 20x20 cm-es lapméretig",36,"m",0,0,0,0]
[3,"42-000-2.2","Lapburkolatok bontása, fal-, pillér- és oszlopburkolat, bármely méretű mozaik, kőagyag és csempe",28,"m²",0,0,0,0]
[4,"42-022-1.1.1.1.1.3-0313111","Padlóburkolat készítése, beltérben, tégla, beton, vakolt alapfelületen, mázas kerámiával, kötésben vagy hálósan, 3-5 mm vtg. ragasztóba rakva, 1-10 mm fugaszélességgel, 25x25 -  40x40 cm közötti lapmérettel, MAPEI Adesilex P9 C2TE cementkötésű ragasztóhabarcs, szürke, Csz: 006125 MAPEI Ultracolor Plus fugázóhabarcs, fehér, Csz: 6010028A",25,"m²",0,0,0,0]
[5,"42-022-2.1.1.1.3-0313111","Lábazatburkolat készítése, beltérben, mázas kerámiával, egyenes, egysoros kivitelben, 3-5 mm ragasztóba rakva, 1-10 mm fugaszélességgel, 10 cm magasságig, 25×25 - 40×40 cm közötti lapmérettel, MAPEI Adesilex P9 C2TE cementkötésű ragasztóhabarcs, szürke, Csz: 006125 MAPEI Ultracolor Plus fugázóhabarcs, fehér, Csz: 6010028A",36,"m",0,0,0,0]
[6,"42-012-1.1.1.1.1.3-0313111","Fal-, pillér-, oszlop- és lábazatburkolat készítése beltérben, tégla, beton, vakolt alapfelületen, mázas kerámiával, kötésben vagy hálósan, 3-5 mm vtg. ragasztóba rakva, 1-10 mm fugaszélességgel, 25x25 -  40x40 cm közötti lapmérettel, MAPEI Adesilex P9 C2TE cementkötésű ragasztóhabarcs, szürke, Csz: 006125 és Ultracolor Plus fugázó, fehér, Csz: 6010002",28,"m²",0,0,0,0]
[7,"42-090-6.7.3","Fa-, hézagmentes és műanyagburkolatok javítása, régi vagy javított parketta burkolat felújítása, régi székléc bontás, új anyagból pótlás",30,"m",0,0,0,0]
[8,"42-042-6.1.2.2-0313901","Kisegítő- és részmunkák, parketta csiszolása és lakkozása, nagy igénybevételre, vízbázisú lakkal, MAPEI Ultracoat Universal Base egykomponensű, vizes bázisú alapozó, Csz:7376010N MAPEI Ultracoat Easy Plus S/60 egykomponensű, vizesdiszperziós, poliuretán lakk,selyemfényű, Csz: 7372910 MAPEI Ultracoat Binder oldószermentes, vizesdiszperziós kitöltőanyag, Csz:7372805",0,"m²",0,0,0,0]
[9,"42-000-3.4","Fa-, hézagmentes műanyag- és szőnyegburkolatok bontása, gumilemez vagy PVC burkolat tekercsből, lapokból vagy lépcsőn betétként",18.88,"m²",0,0,0,0]
[10,"42-011-2.1.3.1","Padlóburkolat hordozószerkezetének felületelőkészítése beltérben, meglévő hidegburkolaton felületelőkészítő alapozó és tapadóhíd felhordása egy rétegben",18.88,"m²",0,0,0,0]
[11,"42-042-5.1.8-0316001","Laminált padló fektetése (szegélyléccel együtt), kiegyenlített aljzatra, parketta alátétlemez elhelyezése, FLOORMAT XPS alapú barázdált parketta alátétlemez, 50x100 cm, 2 mm vtg., Cikkszám: T14201",31.62,"m²",0,0,0,0]
[12,"42-011-2.1.1.4.1-0215090","Padlóburkolat hordozószerkezetének felületelőkészítése beltérben, beton alapfelületen önterülő felületkiegyenlítés készítése 5 mm átlagos rétegvastagságban, Baumit Nivello 50 C30 szilárdságú cementkötésű bel- és kültéri aljzatkiegyenlítő, 2-50 mm között, Cikkszám: 953214",25,"m²",0,0,0,0]
[null,null,"Munkanem összesen (HUF)",{"$nulls":4},{"$f":"ROUND(SUM(H2:H13),0)","v":0},{"$f":"ROUND(SUM(I2:I13),0)","v":0}]

{"sheet":"44.Fa- és műanyag szerkezet el","index":7,"n_rows":5,"n_cols":9,"rows_kept":5,"cut":false,"hidden":false,"merged":[]}
["Ssz.","Tételszám","Tétel szövege","Menny.","Egység","Anyag egységár","Díj egységre","Anyag összesen","Díj összesen"]
[1,"K (44-000-3)","Beépített faszekrény (konyhaszekrény) óvatos bontása és visszaépítése",6,"m²",0,0,{"$f":"ROUND(F2*D2,0)","v":0},{"$f":"ROUND(G2*D2,0)","v":0}]
[2,"44-090-6","Meglévő ajtólap rövidebbé vétele szárnyanként",5,"db",0,0,{"$f":"ROUND(F3*D3,0)","v":0},{"$f":"ROUND(G3*D3,0)","v":0}]
[3,"44-090-31.2","Küszöbcsere küszöbsínnel, 10 cm vastag falban",7,"m",0,0,0,0]
[null,null,"Munkanem összesen (HUF)",{"$nulls":4},{"$f":"ROUND(SUM(H2:H4),0)","v":0},{"$f":"ROUND(SUM(I2:I4),0)","v":0}]

{"sheet":"47.Felületképzés","index":8,"n_rows":4,"n_cols":9,"rows_kept":4,"cut":false,"hidden":false,"merged":[]}
["Ssz.","Tételszám","Tétel szövege","Menny.","Egység","Anyag egységár","Díj egységre","Anyag összesen","Díj összesen"]
[1,"47-010-2.1.1-0148295","Enyhén nedvszívó vagy sima falfelületek  tapadásközvetítő alapozása, vizes-diszperziós, akril bázisú alapozóval, tagolatlan felületen, Baumit Divina Primer - kül- és beltéri alapozó, Cikkszám: 925150",60,"m²",0,0,{"$f":"ROUND(F2*D2,0)","v":0},{"$f":"ROUND(G2*D2,0)","v":0}]
[2,"47-011-15.1.1.1-0150244","Diszperziós festés (két rétegben) műanyag bázisú vizes-diszperziós  fehér vagy gyárilag színezett festékkel, új vagy régi lekapart, előkészített alapfelületen, vakolaton, két rétegben, tagolatlan sima felületen, SAKRET DFI  diszperziós beltéri festék, II. színcsoport",60,"m²",0,0,{"$f":"ROUND(F3*D3,0)","v":0},{"$f":"ROUND(G3*D3,0)","v":0}]
[null,null,"Munkanem összesen (HUF)",{"$nulls":4},{"$f":"ROUND(SUM(H2:H3),0)","v":0},{"$f":"ROUND(SUM(I2:I3),0)","v":0}]

{"sheet":"90.Ideiglenes felületvédelem é","index":9,"n_rows":4,"n_cols":9,"rows_kept":4,"cut":false,"hidden":false,"merged":[]}
["Ssz.","Tételszám","Tétel szövege","Menny.","Egység","Anyag egységár","Díj egységre","Anyag összesen","Díj összesen"]
[1,"90-008-1-0110202","Festés előtt burkolatok takarásának készítése, Takarás készítése fóliával",1.5,"100 m²",0,0,{"$f":"ROUND(F2*D2,0)","v":0},{"$f":"ROUND(G2*D2,0)","v":0}]
[2,"90-008-2","Festés után burkolatok takarásának felszedése",1.5,"100 m²",0,0,{"$f":"ROUND(F3*D3,0)","v":0},{"$f":"ROUND(G3*D3,0)","v":0}]
[null,null,"Munkanem összesen (HUF)",{"$nulls":4},{"$f":"ROUND(SUM(H2:H3),0)","v":0},{"$f":"ROUND(SUM(I2:I3),0)","v":0}]